Cogmind - Beta 15 @@@ ROGUE MODE // 2025.05.26 @ 12:59:09 Player: acra Result: Self-destructed Performance ------------- Evolutions (4) 2000 Regions Visited (10) 2000 Robots Destroyed (49) 245 Value Destroyed (1782) 1782 Prototype IDs (4) 80 Alien Tech Used (1) 200 Bonus (-3) -3 TOTAL SCORE: 6304 Bonus ------- Friendly Fire -3 Cogmind --------- Core Integrity 608/850 Matter 170/300 Energy 100/100 System Corruption 0% Temperature Cool (-100) Movement Core (250) Ox4 Location -6/Factory Parts ------- > --- POWER (1) -------- (None) > --- PROPULSION (2) --- (None) > --- UTILITY (10) ----- Cryofiber Web Improved Heat Sink Coolant Injector Small Storage Unit Enhanced Optical Array > --- WEAPON (3) ------- Force Rifle > --- INVENTORY (8) ---- Improved Reaction Control System Particle Gun Particle Gun Heavy Laser Heavy Laser Peak State ------------ > --- POWER ------------ Light Deuterium Engine > --- PROPULSION ------- Aluminum Leg Carbon-fiber Leg > --- UTILITY ---------- Cryofiber Web Improved Heat Sink Coolant Injector Small Storage Unit Trap Scanner Enhanced Optical Array IFF Parser Hacking Suite > --- WEAPON ----------- Plasma Rifle Force Rifle Rocket Launcher > --- INVENTORY -------- Micro Nuclear Core Wheel Particle Gun Particle Gun Heavy Laser Heavy Laser Gauss Rifle [Rating: 49] Favorites ----------- Power Light Deuterium Engine Engine Light Deuterium Engine Power Core Light Nuclear Core Propulsion Aluminum Leg Leg Aluminum Leg Wheel Wheel Utility Small Storage Unit Device Trap Scanner Storage Small Storage Unit Processor Targeting Computer Hackware Hacking Suite Protection Layered Medium Armor Plating Weapon Particle Gun Energy Gun Particle Gun Ballistic Gun Gauss Rifle Launcher Rocket Launcher Build | -11 -10 -9 -9 -8 -7 -7 -7 -7 -7 -6 ------- Run | Yrd Mat Mat Min Mat Fac Was Fac Low Low Fac Slots Evolved 8 | . . 2 . 2 2 . . . . 2 Power . | . . . . . . . . . . . Propulsion . | . . . . . . . . . . . Utility 8 | . . 2 . 2 2 . . . . 2 Weapon . | . . . . . . . . . . . Parts Attached 70 | 6 10 5 . 17 6 1 12 5 . 8 Power 10 | 1 2 . . 3 2 . 1 . . 1 Engine 7 | 1 2 . . 2 1 . 1 . . . Core 3 | . . . . 1 1 . . . . 1 Reactor . | . . . . . . . . . . . Propulsion 16 | 2 3 . . 5 . 1 3 2 . . Treads . | . . . . . . . . . . . Leg 14 | 2 3 . . 5 . 1 1 2 . . Wheel 2 | . . . . . . . 2 . . . Hover . | . . . . . . . . . . . Flight . | . . . . . . . . . . . Utility 28 | 1 2 5 . 5 4 . 6 1 . 4 Device 13 | . . 2 . 1 4 . 2 1 . 3 Storage 3 | 1 1 . . . . . 1 . . . Processor 6 | . . 3 . 1 . . 1 . . 1 Hackware 1 | . . . . . . . 1 . . . Protection 5 | . 1 . . 3 . . 1 . . . Artifact . | . . . . . . . . . . . Weapon 16 | 2 3 . . 4 . . 2 2 . 3 Energy Gun 13 | 2 3 . . 4 . . 2 . . 2 Energy Cannon . | . . . . . . . . . . . Ballistic Gun 1 | . . . . . . . . . . 1 Ballistic Cannon . | . . . . . . . . . . . Launcher 2 | . . . . . . . . 2 . . Special Weapon . | . . . . . . . . . . . Impact Weapon . | . . . . . . . . . . . Slashing Weapon . | . . . . . . . . . . . Piercing Weapon . | . . . . . . . . . . . Special Melee Weapon . | . . . . . . . . . . . Unidentified Prototypes 3 | . . . . 1 . . . 1 . 1 Parts Lost 27 | . . . . 7 . 5 . 2 . 13 Power 3 | . . . . . . 1 . . . 2 Propulsion 6 | . . . . 2 . . . . . 4 Utility 9 | . . . . 2 . 2 . 2 . 3 Weapon 9 | . . . . 3 . 2 . . . 4 Highest Loss Streak 11 | . . . . 4 . 5 . 2 . 11 To Critical Strikes . | . . . . . . . . . . . Average Backups 7 | 1 7 9 10 9 9 8 4 7 8 7 Power 1 | . 1 1 1 2 2 1 . . 1 . Propulsion 1 | . 1 2 2 1 2 1 . 1 2 1 Utility 1 | . 2 2 4 2 1 1 . . . . Weapon 3 | . 2 3 3 3 4 3 3 5 5 4 Tool/Special . | . . . . . . . . . . . Unused Backups 19 | . 5 4 . 3 1 2 . . . 4 Power 3 | . 1 . . 1 1 . . . . . Propulsion 3 | . 1 1 . 1 . . . . . . Utility 5 | . 1 2 . . . 1 . . . 1 Weapon 8 | . 2 1 . 1 . 1 . . . 3 Tool/Special . | . . . . . . . . . . . Average Slot Usage (%) 88 | . 98 99 100 98 99 66 64 82 71 65 Engine 7 | . 14 11 11 6 1 . 4 7 7 5 Core 1 | . . . . 2 5 5 . . . . Leg 14 | . 28 22 22 18 15 8 . 1 14 10 Wheel 3 | . . . . . . . 11 12 . . Device 11 | . . 8 . 9 26 19 11 14 14 17 Storage 8 | . 14 11 11 9 7 5 4 7 7 6 Processor 11 | . . 22 33 27 18 10 6 6 . 1 Hackware 2 | . . . . . . . 6 7 7 5 Protection 5 | . 12 1 . 7 7 6 2 6 . . Energy Gun 17 | . 28 22 22 18 15 9 12 12 7 8 Launcher 1 | . . . . . . . . 3 14 7 Peak Build Rating 49 | 6 10 13 12 23 32 32 29 41 30 49 Average Rating 20 | 4 8 12 12 18 29 21 21 29 30 35 On Entrance 16 | . 6 10 12 12 23 32 1 29 30 30 Naked Turns 8 | . . . . . . 7 1 . . . Heaviest Build 37 | 12 22 22 21 28 28 28 27 37 28 30 Greatest Support 34 | 20 20 26 20 31 34 34 20 30 30 30 Greatest Overweight (x) 4 | 3 1 1 1 1 . 1 1 2 . 4 Average Overweight (x) . | . . . 1 . . . . . . . Largest Inventory Capacity 10 | 8 10 10 10 10 10 10 8 8 8 8 Average Capacity 8 | 7 8 10 10 10 10 8 6 8 8 8 Most Carried 10 | 3 10 10 10 10 10 10 6 8 8 8 Average Carried 7 | 2 7 9 10 9 9 8 4 7 8 7 Final Capacity 10 | 8 10 10 10 10 10 5 8 8 8 8 Final Carried 10 | 3 10 10 10 10 10 5 6 8 8 5 Class Distribution -------------------- 55% | Mutant 32% | Scavenger-Mutant 9% | Scavenger-Skirmisher Dominant Class ---------------- Mutant | -10/Materials Mutant | -9/Materials Mutant | -9/Mines Mutant | -8/Materials Scavenger-Mutant | -7/Factory Mutant | -7/Waste Scavenger-Mutant | -7/Factory Scavenger-Mutant | -7/Lower Caves Scavenger-Skirmisher | -7/Lower Caves Scavenger-Skirmisher | -6/Factory Resources | -11 -10 -9 -9 -8 -7 -7 -7 -7 -7 -6 ----------- Run | Yrd Mat Mat Min Mat Fac Was Fac Low Low Fac Matter Collected 1023 | 253 97 . 40 237 17 . 50 282 7 40 Remotely . | . . . . . . . . . . . Salvage Created 1672 | . 409 . 40 737 17 . 108 197 85 79 Parts 86 | . 17 . 7 32 3 . 6 8 6 7 Haulers Intercepted . | . . . . . . . . . . . Recyclers Shooed . | . . . . . . . . . . . Parts Field Recycled . | . . . . . . . . . . . Retrieved Matter . | . . . . . . . . . . . Parts Self-Destructed 8 | . . . . . . . . 6 2 . Prevented 2 | . . . . . . . . 1 1 . Kills | -11 -10 -9 -9 -8 -7 -7 -7 -7 -7 -6 ------- Run | Yrd Mat Mat Min Mat Fac Was Fac Low Low Fac Combat Hostiles Destroyed 43 | . 9 . 3 19 . . . 4 4 4 Guns 33 | . 9 . 3 18 . . . 2 . 1 AOE 10 | . . . . 1 . . . 2 4 3 Classes Destroyed 12 | . 2 . 1 4 1 . 1 2 . 1 Recycler 2 | . . . . . . . 2 . . . Mechanic 1 | . . . . . . . . . . 1 Operator 2 | . . . . . 1 . . . . 1 Watcher 1 | . 1 . . . . . . . . . Swarmer 11 | . . . 3 . . . . . 4 4 Grunt 25 | . 9 . . 14 . . . 2 . . Brawler 1 | . . . . 1 . . . . . . Duelist 2 | . . . . 1 . . . 1 . . Sentry 2 | . . . . 2 . . . . . . Hunter 1 | . . . . 1 . . . . . . Programmer 1 | . . . . . . . . 1 . . Samaritan 1 | . . . . . . . . 1 . . Best Kill Streak 9 | . 3 . 3 9 1 . 2 3 4 3 Combat Bots Only 9 | . 3 . 3 9 . . . 3 4 3 Max Kills in Single Turn 3 | . 1 . 1 1 1 . 1 1 3 3 Gunslinging . | . . . . . . . . . . . Exploded 3 | . . . . 1 . . . 1 3 3 Melee . | . . . . . . . . . . . Uniques/NPCs Destroyed . | . . . . . . . . . . . Combat | -11 -10 -9 -9 -8 -7 -7 -7 -7 -7 -6 -------- Run | Yrd Mat Mat Min Mat Fac Was Fac Low Low Fac Hostile Shots Fired 299 | . 36 . 14 101 . 5 9 6 4 124 Missed 74 | . 11 . 2 15 . . 4 1 3 38 Hits 225 | . 25 . 12 86 . 5 5 5 1 86 Melee 10 | . . . . 4 . 5 . 1 . . Projectile 215 | . 25 . 12 82 . . 5 4 1 86 Critical Strikes 7 | . . . . 3 . 2 . 1 . 1 Damage Taken 3435 | . 321 . 97 1329 . 239 41 283 50 1075 Core 857 | . 83 . 17 345 . 170 . . . 242 Absorbed by Shields . | . . . . . . . . . . . Redirected to Shielding 67 | . 18 . . 49 . . . . . . Regen/Repaired (Parts) 32 | . 32 . . . . . . . . . Core Remaining (%) 74 | 100 66 . 95 37 . . . . 75 . Volleys Fired 140 | . 29 . 5 66 6 . 2 14 2 16 Largest 3 | . 2 . 2 2 2 . 2 3 2 3 Hottest 183 | . 130 . 130 130 130 . 130 141 76 183 Shots Fired 261 | . 54 . 10 127 12 . 4 25 3 26 Gun 245 | . 54 . 10 127 12 . 4 19 . 19 Cannon . | . . . . . . . . . . . Launcher 16 | . . . . . . . . 6 3 7 Special . | . . . . . . . . . . . Kinetic 8 | . . . . . . . . . . 8 Thermal 226 | . 44 . 10 126 12 . 4 19 . 11 Explosive 11 | . . . . . . . . 4 1 6 Electromagnetic 16 | . 10 . . 1 . . . 2 2 1 Robot Hit Streak 20 | . 18 . 2 20 5 . 6 9 1 7 Robot Miss Streak 3 | . 2 . 3 3 2 . . 1 1 2 Penetration Max . | . . . . . . . . . . . Secondary Targets 1 | . . . 1 . . . . . . . Max Gunslinging Chain 1 | . . . 1 . . . . . . . Shots Hit Robots 188 | . 40 . 3 101 8 . 3 16 1 16 Core Hits 136 | . 17 . 3 84 3 . 3 11 6 9 Critical Kills . | . . . . . . . . . . . Critical Parts Destroyed . | . . . . . . . . . . . Critical Strikes 5 | . 1 . . 2 . . . 1 . 1 Burn 5 | . 1 . . 2 . . . 1 . 1 Melee Attacks . | . . . . . . . . . . . Impact . | . . . . . . . . . . . Slashing . | . . . . . . . . . . . Piercing . | . . . . . . . . . . . Sneak Attacks . | . . . . . . . . . . . Combat Hostiles . | . . . . . . . . . . . Follow-up Attacks . | . . . . . . . . . . . Damage Inflicted 3767 | . 558 . 51 1734 121 . 43 406 207 647 Guns 2878 | . 558 . 51 1621 121 . 43 214 . 270 Cannons . | . . . . . . . . . . . Explosions 889 | . . . . 113 . . . 192 207 377 Melee . | . . . . . . . . . . . Ramming . | . . . . . . . . . . . Kinetic 109 | . . . . . . . . . . 109 Thermal 2727 | . 425 . 51 1712 121 . 43 214 . 161 Explosive 631 | . . . . . . . . 147 149 335 Electromagnetic 300 | . 133 . . 22 . . . 45 58 42 Impact . | . . . . . . . . . . . Slashing . | . . . . . . . . . . . Piercing . | . . . . . . . . . . . Highest Corruption 14 | . . . . . . 9 9 14 14 . Average Corruption 9 | . . . . . . 9 9 9 14 . Corruption Purged . | . . . . . . . . . . . Corruption Blocked . | . . . . . . . . . . . Effects 34 | . . . . . . 2 9 22 1 . Message Errors 10 | . . . . . . . 4 6 . . Matter Fused 6 | . . . . . . . 1 5 . . Heat Flow Errors 4 | . . . . . . . 1 3 . . Energy Discharges 4 | . . . . . . . 2 2 . . Parts Rejected 2 | . . . . . . 2 . . . . Parts Fused 1 | . . . . . . . . 1 . . Data Loss (minor) 3 | . . . . . . . 1 2 . . Misfires 1 | . . . . . . . . 1 . . Alerts 1 | . . . . . . . . 1 . . Weapon Failures 2 | . . . . . . . . 1 1 . Overload Shots . | . . . . . . . . . . . Overflow Damage 85 | . . . . 13 . . . . . 72 Projectiles . | . . . . . . . . . . . Explosions 85 | . . . . 13 . . . . . 72 Melee . | . . . . . . . . . . . Knockbacks . | . . . . . . . . . . . Impact . | . . . . . . . . . . . Kinetic . | . . . . . . . . . . . Secondary . | . . . . . . . . . . . Self-Inflicted Damage 71 | . . . . . . . . . 34 37 Shots 3 | . . . . . . . . . 2 1 Rammed . | . . . . . . . . . . . Targets Rammed . | . . . . . . . . . . . Kicked . | . . . . . . . . . . . Crushed . | . . . . . . . . . . . Highest Temperature 393 | . 382 . 300 393 12 . 158 308 . 18 Average Temperature 129 | . 128 . 153 148 6 . 63 114 . 11 Received Heat Transfer 1167 | . 177 . . 621 . . 12 . . 357 Effects 8 | . 1 . . 7 . . . . . . Shutdowns 2 | . 1 . . 1 . . . . . . Interference 4 | . . . . 4 . . . . . . Matter Decay 1 | . . . . 1 . . . . . . Short Circuit 1 | . . . . 1 . . . . . . Siege Activations . | . . . . . . . . . . . Martial Activations . | . . . . . . . . . . . Shielding Activations . | . . . . . . . . . . . Robots Disrupted . | . . . . . . . . . . . Combat Hostiles . | . . . . . . . . . . . Robots Corrupted . | . . . . . . . . . . . Combat Hostiles . | . . . . . . . . . . . Parts Fried 1 | . 1 . . . . . . . . . Impact Corruptions . | . . . . . . . . . . . Robots Melted . | . . . . . . . . . . . Combat Hostiles . | . . . . . . . . . . . Parts Melted 2 | . . . . 1 . . . 1 . . Heat Transferred 6093 | . 1210 . 111 3399 296 . 111 555 . 411 Parts Sabotaged . | . . . . . . . . . . . Parts Stolen . | . . . . . . . . . . . Parts Stripped . | . . . . . . . . . . . Power Chain Reactions 2 | . . . . 1 . . . . 1 . Alert | -11 -10 -9 -9 -8 -7 -7 -7 -7 -7 -6 ------- Run | Yrd Mat Mat Min Mat Fac Was Fac Low Low Fac Maximum Alert Level 1 | . . . . 1 . . . . . . Low Security (%) 91 | 100 100 100 100 49 100 100 100 . . 100 Level 1 8 | . . . . 50 . . . . . . Level 2 . | . . . . . . . . . . . Level 3 . | . . . . . . . . . . . Level 4 . | . . . . . . . . . . . Level 5 . | . . . . . . . . . . . High Security . | . . . . . . . . . . . Max Security . | . . . . . . . . . . . Peak Influence 247 | . 111 21 85 247 123 . 15 . . 94 Initial 112 | . . 21 . . 112 . . . . 50 Average 52 | . 43 2 26 160 48 . 1 . . 40 Influence Increases 1338 | . 293 . 85 509 16 . 32 150 90 163 Destroy 0b10 Robot/C 860 | . 180 . 60 380 . . . 80 80 80 Destroy 0b10 Robot/NC 35 | . 5 . . . 5 . 10 5 . 10 Destroy Leader 172 | . 32 . 10 90 . . . 20 10 10 Successful Hack 63 | . 45 . . . 11 . 7 . . . Disable Machine 45 | . . . 15 . . . . . . 30 Destroy Structure 28 | . 1 . . 9 . . . . . 18 Partial Spotted 15 | . . . . . . . 15 . . . Lose Combat Pursuer 120 | . 30 . . 30 . . . 45 . 15 Influence Decreases 1338 | . 241 52 85 262 263 . 27 155 10 243 Entered New Map 199 | . . 31 . . 135 . . 3 . 30 Time Decay 979 | . 241 21 85 192 128 . 27 132 10 143 Lost Part 160 | . . . . 70 . . . 20 . 70 Squads Dispatched 12 | . 1 . . 7 2 . . . . 2 Investigation 3 | . 1 . . 1 . . . . . 1 Extermination 1 | . . . . . 1 . . . . . Reinforcement 5 | . . . . 3 1 . . . . 1 Assault . | . . . . . . . . . . . Garrison 3 | . . . . 3 . . . . . . Intercept . | . . . . . . . . . . . Searches Triggered . | . . . . . . . . . . . Construction Impeded 1 | . . . . 1 . . . . . . Haulers Reinforced . | . . . . . . . . . . . Active Scanning Responses . | . . . . . . . . . . . Cargo Convoy Interrupts . | . . . . . . . . . . . Stealth | -11 -10 -9 -9 -8 -7 -7 -7 -7 -7 -6 --------- Run | Yrd Mat Mat Min Mat Fac Was Fac Low Low Fac Distress Signals 3 | . 2 . . 1 . . . . . . Communications Jammed . | . . . . . . . . . . . Distress Signals . | . . . . . . . . . . . Times Spotted 70 | . 15 . 3 24 5 3 2 6 4 8 Peak Tracking Total 9 | . 5 . 3 9 2 3 2 3 4 4 Tactical Retreats 4 | . 1 . . 1 . . . 1 . 1 Traps | -11 -10 -9 -9 -8 -7 -7 -7 -7 -7 -6 ------- Run | Yrd Mat Mat Min Mat Fac Was Fac Low Low Fac Traps Triggered 3 | . . . . 1 1 . . . . 1 Indirectly . | . . . . . . . . . . . Trap Hack Attempts . | . . . . . . . . . . . Triggered . | . . . . . . . . . . . Disarmed . | . . . . . . . . . . . Reprogrammed . | . . . . . . . . . . . Reused . | . . . . . . . . . . . Traps Extracted . | . . . . . . . . . . . Installed . | . . . . . . . . . . . Triggered . | . . . . . . . . . . . Machines | -11 -10 -9 -9 -8 -7 -7 -7 -7 -7 -6 ---------- Run | Yrd Mat Mat Min Mat Fac Was Fac Low Low Fac Machines Disabled 3 | . . . 1 . . . . . . 2 Max in Single Turn 1 | . . . 1 . . . . . . 1 Garrison Access 1 | . . . . . . . . . . 1 Machines Repaired . | . . . . . . . . . . . Machines Dismantled . | . . . . . . . . . . . Machines Sabotaged . | . . . . . . . . . . . Overloaded Fab Kills . | . . . . . . . . . . . Hacking | -11 -10 -9 -9 -8 -7 -7 -7 -7 -7 -6 --------- Run | Yrd Mat Mat Min Mat Fac Was Fac Low Low Fac Machines Accessed 16 | . 7 2 . . 2 . 3 . . 2 Terminals 11 | . 5 2 . . 2 . 1 . . 1 Fabricators . | . . . . . . . . . . . Repair Stations 1 | . 1 . . . . . . . . . Recycling Units 3 | . 1 . . . . . 2 . . . Scanalyzers . | . . . . . . . . . . . Garrison Access 1 | . . . . . . . . . . 1 Total Hacks 39 | . 24 2 . . 4 . 6 . . 3 Successful 23 | . 15 . . . 2 . 4 . . 2 Failed 16 | . 9 2 . . 2 . 2 . . 1 Catastrophic 5 | . 2 1 . . 1 . 1 . . . Database Lockouts . | . . . . . . . . . . . Manual 10 | . 8 . . . 1 . 1 . . . Terminals 32 | . 20 2 . . 4 . 4 . . 2 Fabricators . | . . . . . . . . . . . Repair Stations 2 | . 2 . . . . . . . . . Recycling Units 4 | . 2 . . . . . 2 . . . Scanalyzers . | . . . . . . . . . . . Garrison Access 1 | . . . . . . . . . . 1 Terminal Hacks 17 | . 11 . . . 2 . 3 . . 1 Prototype ID Bank 1 | . 1 . . . . . . . . . Open DSF 1 | . . . . . . . . . . 1 Branch Access Points 2 | . 1 . . . . . 1 . . . Terminal Index 2 | . 1 . . . 1 . . . . . Alert Level 1 | . . . . . . . 1 . . . Locate Traps 1 | . 1 . . . . . . . . . Dispatch Records 1 | . 1 . . . . . . . . . Maintenance Status 1 | . 1 . . . . . . . . . Transport Status 1 | . 1 . . . . . . . . . Hauler Manifests 1 | . 1 . . . . . . . . . Registered Components 1 | . 1 . . . . . . . . . Zone Layout 4 | . 2 . . . 1 . 1 . . . Fabricator Hacks . | . . . . . . . . . . . Repair Station Hacks 2 | . 2 . . . . . . . . . Scan Component 1 | . 1 . . . . . . . . . Repair 1 | . 1 . . . . . . . . . Recycling Unit Hacks 3 | . 2 . . . . . 1 . . . Report Inventory 1 | . 1 . . . . . . . . . Retrieve Components 2 | . 1 . . . . . 1 . . . Scanalyzer . | . . . . . . . . . . . Garrison Access Hacks 1 | . . . . . . . . . . 1 Seal Access 1 | . . . . . . . . . . 1 Unauthorized Hacks . | . . . . . . . . . . . Terminals . | . . . . . . . . . . . Fabricators . | . . . . . . . . . . . Repair Stations . | . . . . . . . . . . . Recycling Units . | . . . . . . . . . . . Scanalyzers . | . . . . . . . . . . . Garrison Access . | . . . . . . . . . . . Data Cores Recovered . | . . . . . . . . . . . Used . | . . . . . . . . . . . Hacking Detections 12 | . 7 2 . . 2 . 1 . . . Full Trace Events 1 | . 1 . . . . . . . . . Feedback Events . | . . . . . . . . . . . Feedback Blocked . | . . . . . . . . . . . Robot Schematics Acquired . | . . . . . . . . . . . Robots Built . | . . . . . . . . . . . Authchips . | . . . . . . . . . . . Time . | . . . . . . . . . . . Total Robot Build Rating . | . . . . . . . . . . . Part Schematics Acquired . | . . . . . . . . . . . Parts Built . | . . . . . . . . . . . Authchips . | . . . . . . . . . . . Time . | . . . . . . . . . . . Total Part Build Rating . | . . . . . . . . . . . Parts Repaired 1 | . 1 . . . . . . . . . Time 26 | . 26 . . . . . . . . . Parts Recycled . | . . . . . . . . . . . Recycled Matter . | . . . . . . . . . . . Retrieved Matter . | . . . . . . . . . . . Retrieved Components 6 | . 3 . . . . . 3 . . . Parts Scanalyzed . | . . . . . . . . . . . Part Schematics Acquired . | . . . . . . . . . . . Parts Damaged . | . . . . . . . . . . . Bothacking | -11 -10 -9 -9 -8 -7 -7 -7 -7 -7 -6 ------------ Run | Yrd Mat Mat Min Mat Fac Was Fac Low Low Fac Used RIF Installer . | . . . . . . . . . . . Robots Hacked . | . . . . . . . . . . . Non-combat . | . . . . . . . . . . . Combat . | . . . . . . . . . . . Robot Hacks Applied . | . . . . . . . . . . . Relay Couplers Released . | . . . . . . . . . . . Fabnet Peak Effective % . | . . . . . . . . . . . Robots Rewired . | . . . . . . . . . . . Allies Hacked . | . . . . . . . . . . . Hacks Repelled . | . . . . . . . . . . . Allies | -11 -10 -9 -9 -8 -7 -7 -7 -7 -7 -6 -------- Run | Yrd Mat Mat Min Mat Fac Was Fac Low Low Fac Total Allies . | . . . . . . . . . . . Largest Group . | . . . . . . . . . . . Highest-Rated Group . | . . . . . . . . . . . Highest-Rated Ally . | . . . . . . . . . . . Total Orders . | . . . . . . . . . . . Ally Attacks . | . . . . . . . . . . . Total Damage . | . . . . . . . . . . . Kills . | . . . . . . . . . . . Allies Corrupted . | . . . . . . . . . . . Allies Melted . | . . . . . . . . . . . Intel | -11 -10 -9 -9 -8 -7 -7 -7 -7 -7 -6 ------- Run | Yrd Mat Mat Min Mat Fac Was Fac Low Low Fac Active Infowar (turns) 1638 | . . 37 . . 190 40 287 709 33 342 Optics 75 | . . . . . . . . . . 75 Sensors 1134 | . . . . . 190 40 287 617 . . IFF 170 | . . . . . . . . . . 170 Terrain 37 | . . 37 . . . . . . . . Traps 1261 | . . . . . . . 210 709 33 309 Robot Analysis Total . | . . . . . . . . . . . Derelict Logs Recovered . | . . . . . . . . . . . Drone Launches . | . . . . . . . . . . . Drone Recoveries . | . . . . . . . . . . . Exploration | -11 -10 -9 -9 -8 -7 -7 -7 -7 -7 -6 ------------- Run | Yrd Mat Mat Min Mat Fac Was Fac Low Low Fac Turns Passed 3434 | 72 624 217 253 479 343 63 299 709 33 342 Spaces Moved 2161 | 48 328 146 126 182 226 73 280 528 23 201 Core 117 | 12 . . . . . 40 64 . . 1 Treads . | . . . . . . . . . . . Legs 1365 | 36 328 146 126 182 226 33 . 71 23 194 Wheels 679 | . . . . . . . 216 457 . 6 Hover . | . . . . . . . . . . . Flight . | . . . . . . . . . . . Fastest Speed 50 | 50 120 120 190 120 120 50 50 95 120 110 Average Speed 119 | 126 132 137 190 126 120 83 88 100 120 138 Slowest Speed 260 | 200 190 190 190 190 120 190 100 260 120 250 Overloaded Moves . | . . . . . . . . . . . Propulsion Burnouts . | . . . . . . . . . . . Robots Hopped . | . . . . . . . . . . . Potential Cave-ins . | . . . . . . . . . . . Cave-ins Triggered 1 | . . . . . . . . 1 . . Exploration Rate (%) 28 | 3 64 17 43 20 7 63 6 76 3 7 Regions Visited 10 Branch Regions 3 Pre-discovered Areas . | . . . . . . . . . . . Known Exits Taken 4 | . . 1 1 1 . . 1 . . . Unknown Exits Taken 4 | 1 1 . . . . . . 1 1 . Scrap Searched 2 | . . . . . . . . 2 . . Spaces Dug 6 | . . . . . . . . 6 . . Terrain Destroyed 50 | . . . . 5 . . . 15 10 20 Melee . | . . . . . . . . . . . Projectile . | . . . . . . . . . . . AOE 50 | . . . . 5 . . . 15 10 20 Terrain Rammed . | . . . . . . . . . . . Walls Destroyed . | . . . . . . . . . . . Machines Disabled . | . . . . . . . . . . . Actions | -11 -10 -9 -9 -8 -7 -7 -7 -7 -7 -6 --------- Run | Yrd Mat Mat Min Mat Fac Was Fac Low Low Fac Total 2766 | 56 474 164 130 308 289 74 326 683 24 238 Wait 291 | . 79 . . 13 43 . 22 128 . 6 Move 2152 | 47 327 145 125 181 226 72 279 527 22 201 Hop . | . . . . . . . . . . . Pick Up 54 | 3 14 8 . 14 3 . 6 4 . 2 Fast Attach 30 | 6 2 . . 4 1 1 8 3 . 5 Attach 23 | . . 2 . 8 2 1 5 1 . 4 Detach 3 | . . . . . . . 2 1 . . Swap 26 | . 8 3 . 8 3 . . 2 . 2 Drop 47 | . 15 6 . 14 5 . 2 3 . 2 Fire 140 | . 29 . 5 66 6 . 2 14 2 16 Melee . | . . . . . . . . . . . Ram . | . . . . . . . . . . . Kick . | . . . . . . . . . . . Crush . | . . . . . . . . . . . Escape Stasis . | . . . . . . . . . . . Rewire . | . . . . . . . . . . . Trap . | . . . . . . . . . . . Miscellaneous . | . . . . . . . . . . . Route ------- -11/Scrapyard -10/Materials (discovered 2 exits: *Mat / *Min) -9/Materials -9/Mines -8/Materials -7/Factory -7/Waste -7/Factory (discovered 2 exits: *Low x2) -7/Lower Caves -7/Lower Caves -6/Factory History --------- Turn | Location | Event 23 | -11/Scrapyard | Discovered new exit (range 15) 73 | -11/Scrapyard | Entered Materials 335 | -10/Materials | Build established: Mutant 353 | -10/Materials | Repaired EM Pulse Gun 382 | -10/Materials | Discovered new exit (range 7) 456 | -10/Materials | Identified exit to Mines 575 | -10/Materials | Discovered new exit (range 16) 697 | -10/Materials | Entered another Materials area 697 | -9/Materials | Evolved 2 slots: Utility x2 880 | -9/Materials | Discovered new exit (range 16) 912 | -9/Materials | Identified exit to Mines 914 | -9/Materials | Entered Mines 983 | -9/Mines | A weapon hastily lodged in a ceiling crevice suddenly fell to the ground 1140 | -9/Mines | Discovered new exit (range 15) 1165 | -9/Mines | Identified exit to Materials 1167 | -9/Mines | Entered Materials 1167 | -8/Materials | Evolved 2 slots: Utility x2 1285 | -8/Materials | Garrison activated, responded to threat 1315 | -8/Materials | Lost 4 parts (1n2u1w) 1364 | -8/Materials | Destroyed 9 combat bots 1558 | -8/Materials | Discovered new exit (range 8) 1601 | -8/Materials | Core integrity fell below 50% 1645 | -8/Materials | Identified exit to Factory 1646 | -8/Materials | Entered Factory 1646 | -7/Factory | Evolved 2 slots: Utility x2 1989 | -7/Factory | Sucked down chute 1989 | -7/Factory | Entered Waste 2004 | -7/Waste | EMP discharged 2018 | -7/Waste | Spotted C-40 Crusher 2020 | -7/Waste | Spotted C-40 Crusher 2023 | -7/Waste | Spotted C-40 Crusher 2028 | -7/Waste | Crushed by Compactor (1 part destroyed, 2 dropped) 2029 | -7/Waste | Crushed by Compactor (1 part destroyed, 1 dropped) 2031 | -7/Waste | Crushed by Compactor (1 part destroyed, 2 dropped) 2032 | -7/Waste | Crushed by Compactor (1 part destroyed, 2 dropped) 2035 | -7/Waste | Crushed by Compactor (1 part destroyed, 1 dropped) 2045 | -7/Waste | Discovered new exit (range 16) 2052 | -7/Waste | Entered Factory 2066 | -7/Factory | Lost 5 parts (1p2u2w) 2182 | -7/Factory | Discovered new exit (range 12) 2219 | -7/Factory | Identified exit to Lower Caves 2351 | -7/Factory | Entered Lower Caves 2472 | -7/Lower Caves | Build established: Scavenger-Mutant 2885 | -7/Lower Caves | Found Alien Artifact 2885 | -7/Lower Caves | Identified Core Expander 2885 | -7/Lower Caves | Installed Core Expander, added new Weapon slot 2968 | -7/Lower Caves | Crushed by falling debris 2968 | -7/Lower Caves | System corruption reached 10% 3007 | -7/Lower Caves | Discovered new exit (range 9) 3060 | -7/Lower Caves | Entered another Lower Caves area 3077 | -7/Lower Caves | Discovered new exit (range 7) 3093 | -7/Lower Caves | Entered Factory 3093 | -6/Factory | Evolved 2 slots: Utility x2 3096 | -6/Factory | Identified exit to DSF 3435 | -6/Factory | Self-destructed Last Messages --------------- K-01 Serf collects debris. G-50 Soldier heat spikes uncontrollably. Slug penetrates Megafabricator. G-50 Soldier overheating. K-01 Serf collects debris. Hacking Suite destroyed. M-13 Machinist destroyed. Slug penetrates Wall. K-01 Serf collects debris. IFF Parser destroyed. Trap Scanner destroyed. G-50 Soldier heat short circuits Carbon-fiber Leg. K-01 Serf collects debris. Plasma Rifle destroyed. K-01 Serf collects debris. Mic. Nuclear Core destroyed. Carbon-fiber Leg destroyed. Gauss Rifle destroyed. K-01 Serf collects debris. Map ----- +----------------------------------------------------+ | ??????????????????? #??????????????? | | ???????????????????? #??????????????? | | ???????????????????? #??????????????? | | ????????????????????? #??????????????? | | ????????????##########"## = #??????????????? | | ??????????? = #??????????????# | | ??????????? [ #??????????????# | | ?????????????"""" #??????????????/ | | ?????????????"""" #??????????????# | | ????????????""""" #??????????????# | | ???????????"""""" #????########### | | ??????????""""""" !% ####?# # | | ????# """"""""" ! #T ### """ # | | ????# + """"" + | | ?? # """"" # | | ????# # # | | ??????????############+### ###+############ | | ??????????# # # ????????????# | | ??????????# # # """??????????# | | ??????????# # #?"""""????????# | | ?????? / # #??"""?????????# | | ????# # # Y #???"??????????# | | ????# ???# # #??????????????# | | ??????????################ +??????????????# | | ???????????????????#######g#;#########????????#### | | ???????????????????# @ #????????# | | ???????????????????# #????????# | | ???????????????????# #????????# | | ???????????????????# #????????# " | | ???????????????????# #????????# "G | | ???????????????????# ! #????????# " | | ???????????????????# #????????# | | ???????????????????###################????????#### | | ?????????????????????????????????????????????????? | | ?????????????????????????????????????????????????? | | ?????????????????????????????????????????????????? | | ?????????????????????????????????????????????????? | | ?????????????????????????????????????????????????? | | ?????????????????????????????????????????????????? | | ?????????????????????????????????????????????????? | | ?????????????????????????????????????????????????? | | ?????????????????????????????????????????????????? | | ?????????????????????????????????????????????????? | | ?????????????????????????????????????????????????? | | ?????????????????????????????????????????????????? | | ?????????????????????????????????????????????????? | | ?????????????????????????????????????????????????? | | ?????????????????????????????????????????????????? | | ?????????????????????????????????????????????????? | | ?????????????????????????????????????????????????? | +----------------------------------------------------+ Best States ------------- Heat Dissipation 65 Coolant Potential 65 Energy Generation 15 Energy Capacity 265 Matter Stores 300 Matter Capacity 300 Sight Range 22 Robot Scan Range 15 Terrain Scan Range 14 Terrain Scan Density 10 Additional Mass Support 9 Base Temperature (-) 100 Armor Coverage 225 Core Shielding 20 Power Shielding 66 Evasion (%) 55 Targeting Accuracy 11 Offensive Hacking 10 Item Schematics ----------------- None Robot Schematics ------------------ None Fabricated ------------ Nothing Repaired ---------- EM Pulse Gun | 28% | -10/Materials Alien Tech Used ----------------- Core Expander Achievements -------------- None Challenges ------------ None Game ------ Seed ArcsightTacticalMultirail Manual? 0 Play Time 00:39:08 Cumulative 42.7 hours Start 2025.05.26 @ 12:20:12 End 2025.05.26 @ 12:59:09 Sessions 1 Manual Loads 0 Difficulty Rogue Special Mode None Game No. 73 Rogue 55 Adventurer 17 Explorer 1 Win Type - Total 3 Types 3/0/0/0/0/0/0/0/0/0 Lore% 14 Gallery% 34 Achievement% 33 Wizard Run 0 Options --------- Layout 1 ASCII 0 Keyboard 0 Movement Arrows Keybinds 0 Fullscreen 1 Font 24/Smallcaps Map View 50x35 Zoom Use 0% Tactical HUD 0 Map Filters NONE Filters NONE Steam 1 RUN: 207f8423-3910-4c6d-a9a9-bbf48a9caf5d